[Event "SM-blixten 2025"]
[Site "Uppsala, Sweden"]
[Date "2025.07.03"]
[Round "4.4"]
[White "Ostlund, Joar"]
[Black "Religa, Marek"]
[Result "0-1"]
[TimeControl "3 min + 2 sec increment starting from move 1"]
[WhiteTitle "FM"]
[WhiteElo "2322"]
[BlackElo "2227"]

1. d4 {[%clk 00:03:02]} {[%emt 00:00:01]} g6 {[%clk 00:03:04]} {[%emt
00:00:01]} 2. e4 {[%clk 00:03:03]} {[%emt 00:00:01]} Bg7 {[%clk 00:03:05]} 3.
Nc3 {[%clk 00:03:04]} {[%emt 00:00:01]} d6 {[%clk 00:03:07]} 4. Be3 {[%clk
00:03:05]} Nf6 {[%clk 00:03:07]} {[%emt 00:00:02]} 5. Qd2 {[%clk 00:03:06]}
{[%emt 00:00:01]} a6 {[%clk 00:03:04]} {[%emt 00:00:05]} 6. O-O-O {[%clk
00:02:38]} {[%emt 00:00:30]} b5 {[%clk 00:03:04]} {[%emt 00:00:02]} 7. Bd3
{[%clk 00:02:36]} {[%emt 00:00:04]} Nbd7 {[%clk 00:03:00]} {[%emt 00:00:06]} 8.
h4 {[%clk 00:02:35]} {[%emt 00:00:03]} h5 {[%clk 00:02:48]} {[%emt 00:00:14]} 9.
Nf3 {[%clk 00:02:34]} {[%emt 00:00:03]} Ng4 {[%clk 00:02:40]} {[%emt 00:00:10]}
10. Bf4 {[%clk 00:02:23]} {[%emt 00:00:13]} c5 {[%clk 00:02:32]} {[%emt
00:00:11]} 11. dxc5 {[%clk 00:02:01]} {[%emt 00:00:24]} dxc5 {[%clk 00:02:19]}
{[%emt 00:00:15]} 12. Nd5 {[%clk 00:01:48]} {[%emt 00:00:15]} Ra7 {[%clk
00:02:05]} {[%emt 00:00:17]} 13. Ng5 {[%clk 00:01:21]} {[%emt 00:00:28]} e6
{[%clk 00:01:52]} {[%emt 00:00:15]} 14. Ne3 {[%clk 00:00:52]} {[%emt 00:00:31]}
Nge5 {[%clk 00:01:53]} {[%emt 00:00:01]} 15. Be2 {[%clk 00:00:45]} {[%emt
00:00:10]} Qf6 {[%clk 00:01:18]} {[%emt 00:00:37]} 16. c3 {[%clk 00:00:33]}
{[%emt 00:00:14]} Qxf4 {[%clk 00:01:11]} {[%emt 00:00:09]} 17. Qd6 {[%clk
00:00:15]} {[%emt 00:00:20]} Bf8 {[%clk 00:00:58]} {[%emt 00:00:15]} 18. Qd2
{[%clk 00:00:07]} {[%emt 00:00:10]} Be7 {[%clk 00:00:39]} {[%emt 00:00:20]} 0-1

[Event "SM-blixten 2025"]
[Site "Uppsala, Sweden"]
[Date "2025.07.03"]
[Round "5.10"]
[White "Karlsson, Tomas"]
[Black "Prabu, Dananjey"]
[Result "0-1"]
[TimeControl "3 min + 2 sec increment starting from move 1"]
[WhiteTitle "FM"]
[WhiteElo "2239"]
[BlackElo "2047"]

1. e4 {[%clk 00:03:02]} {[%emt 00:00:02]} e5 {[%clk 00:03:04]} {[%emt
00:00:01]} 2. Nf3 {[%clk 00:03:03]} Nc6 {[%clk 00:03:05]} {[%emt 00:00:01]} 3.
Bb5 {[%clk 00:03:04]} {[%emt 00:00:01]} a6 {[%clk 00:03:06]} 4. Ba4 {[%clk
00:03:06]} Nf6 {[%clk 00:03:07]} {[%emt 00:00:01]} 5. O-O {[%clk 00:03:06]}
{[%emt 00:00:02]} b5 {[%clk 00:03:08]} {[%emt 00:00:01]} 6. Bb3 {[%clk
00:03:07]} Be7 {[%clk 00:03:09]} {[%emt 00:00:01]} 7. Re1 {[%clk 00:03:08]} d6
{[%clk 00:03:09]} {[%emt 00:00:02]} 8. c3 {[%clk 00:03:09]} {[%emt 00:00:02]}
O-O {[%clk 00:03:09]} {[%emt 00:00:02]} 9. h3 {[%clk 00:03:10]} Na5 {[%clk
00:03:08]} {[%emt 00:00:03]} 10. Bc2 {[%clk 00:03:11]} {[%emt 00:00:01]} c5
{[%clk 00:03:09]} {[%emt 00:00:01]} 11. d4 {[%clk 00:03:12]} Nc6 {[%clk
00:03:10]} {[%emt 00:00:02]} 12. Nbd2 {[%clk 00:03:10]} {[%emt 00:00:03]} Qb6
{[%clk 00:02:43]} {[%emt 00:00:29]} 13. d5 {[%clk 00:03:09]} {[%emt 00:00:04]}
Nb8 {[%clk 00:02:43]} {[%emt 00:00:01]} 14. a4 {[%clk 00:03:08]} {[%emt
00:00:03]} Bb7 {[%clk 00:02:38]} {[%emt 00:00:08]} 15. Nf1 {[%clk 00:03:06]}
{[%emt 00:00:04]} Nbd7 {[%clk 00:02:16]} {[%emt 00:00:24]} 16. Ng3 {[%clk
00:03:05]} {[%emt 00:00:02]} Rfe8 {[%clk 00:02:15]} {[%emt 00:00:03]} 17. a5
{[%clk 00:02:51]} {[%emt 00:00:16]} Qd8 {[%clk 00:02:16]} {[%emt 00:00:02]} 18.
Be3 {[%clk 00:02:49]} {[%emt 00:00:03]} Nf8 {[%clk 00:02:12]} {[%emt 00:00:05]}
19. Nf5 {[%clk 00:02:49]} {[%emt 00:00:03]} Ng6 {[%clk 00:02:12]} {[%emt
00:00:02]} 20. Nxe7+ {[%clk 00:02:48]} {[%emt 00:00:03]} Qxe7 {[%clk 00:02:13]}
{[%emt 00:00:01]} 21. Nh2 {[%clk 00:02:40]} {[%emt 00:00:10]} Bc8 {[%clk
00:02:05]} {[%emt 00:00:10]} 22. Nf1 {[%clk 00:02:31]} {[%emt 00:00:12]} Nf4
{[%clk 00:02:02]} {[%emt 00:00:04]} 23. Qf3 {[%clk 00:02:06]} {[%emt 00:00:26]}
g5 {[%clk 00:01:41]} {[%emt 00:00:23]} 24. Bxf4 {[%clk 00:01:55]} {[%emt
00:00:14]} gxf4 {[%clk 00:01:42]} {[%emt 00:00:01]} 25. Bd1 {[%clk 00:01:31]}
{[%emt 00:00:27]} Kh8 {[%clk 00:01:42]} {[%emt 00:00:01]} 26. Qd3 {[%clk
00:01:31]} {[%emt 00:00:02]} Rg8 {[%clk 00:01:40]} {[%emt 00:00:04]} 27. Kh1
{[%clk 00:01:21]} {[%emt 00:00:12]} Rg6 {[%clk 00:01:38]} {[%emt 00:00:05]} 28.
Bf3 {[%clk 00:01:19]} {[%emt 00:00:04]} Bd7 {[%clk 00:01:38]} {[%emt 00:00:01]}
29. Nh2 {[%clk 00:01:12]} {[%emt 00:00:09]} Rag8 {[%clk 00:01:39]} {[%emt
00:00:02]} 30. Rg1 {[%clk 00:01:07]} {[%emt 00:00:06]} Ne8 {[%clk 00:01:26]}
{[%emt 00:00:15]} 31. Bg4 {[%clk 00:00:47]} {[%emt 00:00:22]} Bxg4 {[%clk
00:01:27]} {[%emt 00:00:02]} 32. Nxg4 {[%clk 00:00:45]} {[%emt 00:00:03]} Qh4
{[%clk 00:01:12]} {[%emt 00:00:17]} 33. Nh2 {[%clk 00:00:40]} {[%emt 00:00:08]}
Qxf2 {[%clk 00:01:05]} {[%emt 00:00:09]} 34. b4 {[%clk 00:00:28]} {[%emt
00:00:14]} Rxg2 {[%clk 00:00:57]} {[%emt 00:00:09]} 35. Nf3 {[%clk 00:00:20]}
{[%emt 00:00:11]} R8g3 {[%clk 00:00:50]} {[%emt 00:00:08]} 0-1

[Event "SM-blixten 2025"]
[Site "Uppsala, Sweden"]
[Date "2025.07.03"]
[Round "7.6"]
[White "Gruvaeus, Curt"]
[Black "Grahn, Vidar"]
[Result "0-1"]
[TimeControl "3 min + 2 sec increment starting from move 1"]
[WhiteTitle "FM"]
[BlackTitle "FM"]
[WhiteElo "2156"]
[BlackElo "2239"]

1. Nf3 {[%clk 00:03:01]} {[%emt 00:00:02]} d5 {[%clk 00:03:04]} 2. c4 {[%clk
00:03:02]} {[%emt 00:00:01]} e6 {[%clk 00:03:05]} {[%emt 00:00:02]} 3. g3
{[%clk 00:03:02]} {[%emt 00:00:01]} Nf6 {[%clk 00:03:05]} {[%emt 00:00:01]} 4.
Bg2 {[%clk 00:03:03]} Be7 {[%clk 00:03:07]} 5. O-O {[%clk 00:03:04]} {[%emt
00:00:03]} O-O {[%clk 00:03:08]} {[%emt 00:00:02]} 6. Qc2 {[%clk 00:03:03]}
{[%emt 00:00:02]} dxc4 {[%clk 00:03:02]} {[%emt 00:00:08]} 7. Qxc4 {[%clk
00:03:03]} {[%emt 00:00:01]} c5 {[%clk 00:03:00]} {[%emt 00:00:05]} 8. d4
{[%clk 00:03:01]} {[%emt 00:00:03]} Qd5 {[%clk 00:02:25]} {[%emt 00:00:37]} 9.
Nbd2 {[%clk 00:02:39]} {[%emt 00:00:24]} Qxc4 {[%clk 00:02:21]} {[%emt
00:00:07]} 10. Nxc4 {[%clk 00:02:39]} {[%emt 00:00:01]} Nc6 {[%clk 00:02:22]}
11. dxc5 {[%clk 00:02:32]} {[%emt 00:00:11]} Bxc5 {[%clk 00:02:23]} {[%emt
00:00:01]} 12. Bf4 {[%clk 00:02:30]} {[%emt 00:00:02]} Nd5 {[%clk 00:02:23]}
{[%emt 00:00:03]} 13. Bd6 {[%clk 00:02:28]} {[%emt 00:00:03]} Bxd6 14. Nxd6
{[%clk 00:02:29]} Rd8 {[%clk 00:02:22]} {[%emt 00:00:02]} 15. Nc4 {[%clk
00:02:21]} {[%emt 00:00:09]} b5 {[%clk 00:02:19]} {[%emt 00:00:05]} 16. Nce5
{[%clk 00:02:00]} {[%emt 00:00:22]} Nxe5 {[%clk 00:02:20]} {[%emt 00:00:01]} 17.
Nxe5 {[%clk 00:02:01]} {[%emt 00:00:01]} Bb7 {[%clk 00:02:22]} 18. Rac1 {[%clk
00:01:54]} {[%emt 00:00:09]} Rac8 {[%clk 00:02:23]} 19. a3 {[%clk 00:01:44]}
{[%emt 00:00:12]} a5 {[%clk 00:02:23]} {[%emt 00:00:02]} 20. Nd3 {[%clk
00:01:44]} {[%emt 00:00:02]} Ba8 {[%clk 00:02:06]} {[%emt 00:00:18]} 21. Nc5
{[%clk 00:01:33]} {[%emt 00:00:13]} Nb6 {[%clk 00:02:06]} {[%emt 00:00:02]} 22.
b3 {[%clk 00:00:57]} {[%emt 00:00:38]} Bxg2 23. Kxg2 {[%clk 00:00:58]} Kf8
{[%clk 00:02:00]} {[%emt 00:00:02]} 24. Nb7 {[%clk 00:00:52]} {[%emt 00:00:08]}
Rxc1 {[%clk 00:01:20]} {[%emt 00:00:42]} 25. Rxc1 {[%clk 00:00:53]} Ra8 {[%clk
00:01:19]} {[%emt 00:00:03]} 26. Rc5 {[%clk 00:00:46]} {[%emt 00:00:08]} b4
{[%clk 00:01:19]} {[%emt 00:00:03]} 27. a4 {[%clk 00:00:42]} {[%emt 00:00:06]}
Nd5 {[%clk 00:00:54]} {[%emt 00:00:26]} 28. Nxa5 {[%clk 00:00:37]} {[%emt
00:00:07]} Nc3 {[%clk 00:00:54]} {[%emt 00:00:03]} 29. Kf3 {[%clk 00:00:21]}
{[%emt 00:00:18]} Ke7 {[%clk 00:00:52]} {[%emt 00:00:04]} 30. Nc4 {[%clk
00:00:19]} {[%emt 00:00:04]} f5 {[%clk 00:00:41]} {[%emt 00:00:13]} 31. Rc7+
{[%clk 00:00:16]} {[%emt 00:00:06]} Kf6 {[%clk 00:00:42]} 32. Rb7 {[%clk
00:00:11]} {[%emt 00:00:06]} Nd5 {[%clk 00:00:42]} {[%emt 00:00:03]} 33. Ne3
{[%clk 00:00:09]} {[%emt 00:00:04]} Ne7 {[%clk 00:00:26]} {[%emt 00:00:17]} 34.
Rxb4 {[%clk 00:00:10]} {[%emt 00:00:02]} Nc6 {[%clk 00:00:28]} 35. Rb6 {[%clk
00:00:11]} {[%emt 00:00:01]} Nd4+ {[%clk 00:00:28]} {[%emt 00:00:02]} 36. Kg2
{[%clk 00:00:10]} {[%emt 00:00:02]} Nxe2 {[%clk 00:00:27]} {[%emt 00:00:04]} 37.
Nc4 {[%clk 00:00:09]} {[%emt 00:00:02]} Nd4 {[%clk 00:00:27]} {[%emt 00:00:02]}
38. a5 {[%clk 00:00:10]} {[%emt 00:00:02]} g5 {[%clk 00:00:16]} {[%emt
00:00:12]} 39. a6 {[%clk 00:00:12]} f4 {[%clk 00:00:15]} {[%emt 00:00:03]} 40.
gxf4 {[%clk 00:00:11]} {[%emt 00:00:02]} gxf4 {[%clk 00:00:16]} 41. b4 {[%clk
00:00:11]} {[%emt 00:00:02]} f3+ {[%clk 00:00:18]} 42. Kg3 {[%clk 00:00:11]}
{[%emt 00:00:02]} Kf5 {[%clk 00:00:14]} {[%emt 00:00:04]} 43. b5 {[%clk
00:00:12]} {[%emt 00:00:03]} Rg8+ {[%clk 00:00:14]} {[%emt 00:00:02]} 44. Kh3
{[%clk 00:00:11]} {[%emt 00:00:02]} Ne2 {[%clk 00:00:12]} {[%emt 00:00:04]} 45.
Ne3+ {[%clk 00:00:11]} {[%emt 00:00:02]} Kf6 {[%clk 00:00:04]} {[%emt
00:00:10]} 46. Ng4+ {[%clk 00:00:12]} {[%emt 00:00:02]} Kf5 {[%clk 00:00:05]}
{[%emt 00:00:02]} 47. Nh6+ {[%clk 00:00:11]} {[%emt 00:00:02]} Kg5 {[%clk
00:00:05]} {[%emt 00:00:01]} 48. Nxg8 {[%clk 00:00:11]} {[%emt 00:00:02]} h5
{[%clk 00:00:07]} 49. Rxe6 {[%clk 00:00:09]} {[%emt 00:00:04]} h4 {[%clk
00:00:08]} 50. Re4 {[%clk 00:00:09]} {[%emt 00:00:02]} Ng1# {[%emt 00:00:19]}
0-1

[Event "SM-blixten 2025"]
[Site "Uppsala, Sweden"]
[Date "2025.07.03"]
[Round "9.2"]
[White "Seo, Jung Min"]
[Black "Olund, Joar"]
[Result "0-1"]
[TimeControl "3 min + 2 sec increment starting from move 1"]
[WhiteTitle "IM"]
[BlackTitle "FM"]
[WhiteElo "2468"]
[BlackElo "2369"]

1. c4 {[%clk 00:03:04]} {[%emt 00:06:20]} e5 {[%clk 00:03:03]} {[%emt
00:00:01]} 2. e3 {[%clk 00:03:04]} {[%emt 00:00:02]} Nf6 {[%clk 00:03:04]}
{[%emt 00:00:01]} 3. Nc3 {[%clk 00:03:05]} {[%emt 00:00:01]} Bb4 {[%clk
00:03:05]} 4. Nge2 {[%clk 00:03:06]} {[%emt 00:00:01]} c6 {[%clk 00:03:00]}
{[%emt 00:00:06]} 5. d4 {[%clk 00:03:03]} {[%emt 00:00:05]} d6 {[%clk
00:03:02]} {[%emt 00:00:01]} 6. a3 {[%clk 00:03:02]} {[%emt 00:00:03]} Ba5
{[%clk 00:03:03]} 7. b4 {[%clk 00:03:02]} {[%emt 00:00:04]} Bc7 {[%clk
00:03:03]} {[%emt 00:00:01]} 8. Ng3 {[%clk 00:02:59]} {[%emt 00:00:04]} h5
{[%clk 00:03:03]} {[%emt 00:00:02]} 9. Nge4 {[%clk 00:02:54]} {[%emt 00:00:08]}
Nxe4 {[%clk 00:02:57]} {[%emt 00:00:08]} 10. Nxe4 {[%clk 00:02:55]} {[%emt
00:00:01]} d5 {[%clk 00:02:38]} {[%emt 00:00:22]} 11. cxd5 {[%clk 00:02:50]}
{[%emt 00:00:06]} cxd5 {[%clk 00:02:36]} {[%emt 00:00:05]} 12. Nc5 {[%clk
00:02:41]} {[%emt 00:00:10]} Nc6 {[%clk 00:02:06]} {[%emt 00:00:32]} 13. dxe5
{[%clk 00:02:35]} {[%emt 00:00:08]} Bxe5 {[%clk 00:02:03]} {[%emt 00:00:05]} 14.
Rb1 {[%clk 00:02:34]} {[%emt 00:00:02]} d4 {[%clk 00:01:50]} {[%emt 00:00:15]}
15. e4 {[%clk 00:02:35]} {[%emt 00:00:02]} a5 {[%clk 00:01:43]} {[%emt
00:00:08]} 16. b5 {[%clk 00:02:24]} {[%emt 00:00:14]} Ne7 {[%clk 00:01:44]} 17.
Nd3 {[%clk 00:02:24]} {[%emt 00:00:02]} Bc7 {[%clk 00:01:41]} {[%emt 00:00:05]}
18. Be2 {[%clk 00:02:24]} {[%emt 00:00:02]} h4 {[%clk 00:01:30]} {[%emt
00:00:13]} 19. O-O {[%clk 00:02:20]} {[%emt 00:00:06]} h3 {[%clk 00:01:15]}
{[%emt 00:00:18]} 20. g3 {[%clk 00:02:20]} {[%emt 00:00:01]} Be6 {[%clk
00:00:52]} {[%emt 00:00:24]} 21. f4 {[%clk 00:02:12]} {[%emt 00:00:11]} f5
{[%clk 00:00:45]} {[%emt 00:00:10]} 22. Bf3 {[%clk 00:02:10]} {[%emt 00:00:05]}
O-O {[%clk 00:00:43]} {[%emt 00:00:04]} 23. e5 {[%clk 00:02:03]} {[%emt
00:00:09]} Bb6 {[%clk 00:00:36]} {[%emt 00:00:08]} 24. Bxb7 {[%clk 00:01:52]}
{[%emt 00:00:13]} Ra7 {[%clk 00:00:37]} {[%emt 00:00:01]} 25. Bf3 {[%clk
00:01:52]} {[%emt 00:00:02]} Nd5 {[%clk 00:00:38]} {[%emt 00:00:01]} 26. Rb2
{[%clk 00:01:42]} {[%emt 00:00:12]} Ne3 {[%clk 00:00:34]} {[%emt 00:00:06]} 27.
Bxe3 {[%clk 00:01:40]} {[%emt 00:00:03]} dxe3 {[%clk 00:00:35]} {[%emt
00:00:01]} 28. Be2 {[%clk 00:00:58]} {[%emt 00:00:45]} Rd7 {[%clk 00:00:12]}
{[%emt 00:00:25]} 29. Rb3 {[%clk 00:00:31]} {[%emt 00:00:30]} Qa8 {[%clk
00:00:08]} {[%emt 00:00:05]} 30. Rf3 {[%clk 00:00:16]} {[%emt 00:00:16]} Qxf3
{[%clk 00:00:07]} {[%emt 00:00:04]} 0-1

[Event "SM-blixten 2025"]
[Site "Uppsala, Sweden"]
[Date "2025.07.03"]
[Round "10.8"]
[White "Ostlund, Joar"]
[Black "Ziegler, Ari"]
[Result "0-1"]
[TimeControl "3 min + 2 sec increment starting from move 1"]
[WhiteTitle "FM"]
[BlackTitle "IM"]
[WhiteElo "2322"]
[BlackElo "2297"]

1. d4 {[%clk 00:03:03]} Nf6 {[%clk 00:03:03]} {[%emt 00:00:02]} 2. c4 {[%clk
00:03:04]} {[%emt 00:00:01]} c5 {[%clk 00:03:04]} 3. d5 {[%clk 00:03:05]} e6
{[%clk 00:03:06]} 4. Nc3 {[%clk 00:03:06]} {[%emt 00:00:01]} exd5 {[%clk
00:03:07]} 5. cxd5 {[%clk 00:03:07]} {[%emt 00:00:01]} d6 {[%clk 00:03:08]} 6.
Nf3 {[%clk 00:03:07]} {[%emt 00:00:03]} g6 {[%clk 00:03:09]} 7. h3 {[%clk
00:03:06]} {[%emt 00:00:03]} Bg7 {[%clk 00:03:07]} {[%emt 00:00:04]} 8. Bf4
{[%clk 00:03:06]} {[%emt 00:00:02]} a6 {[%clk 00:03:04]} {[%emt 00:00:05]} 9.
a4 {[%clk 00:03:07]} {[%emt 00:00:01]} O-O {[%clk 00:03:04]} {[%emt 00:00:02]}
10. e3 {[%clk 00:03:08]} {[%emt 00:00:01]} Qe7 {[%clk 00:03:02]} {[%emt
00:00:04]} 11. Be2 {[%clk 00:03:08]} {[%emt 00:00:02]} Nbd7 {[%clk 00:02:58]}
{[%emt 00:00:05]} 12. O-O {[%clk 00:03:07]} {[%emt 00:00:04]} Ne8 {[%clk
00:02:58]} {[%emt 00:00:02]} 13. a5 {[%clk 00:02:56]} {[%emt 00:00:14]} Ne5
{[%clk 00:02:55]} {[%emt 00:00:04]} 14. Nd2 {[%clk 00:02:49]} {[%emt 00:00:09]}
Rb8 {[%clk 00:02:43]} {[%emt 00:00:14]} 15. Na4 {[%clk 00:02:32]} {[%emt
00:00:20]} Bd7 {[%clk 00:02:39]} {[%emt 00:00:06]} 16. Nb6 {[%clk 00:02:29]}
{[%emt 00:00:04]} Bb5 {[%clk 00:02:35]} {[%emt 00:00:05]} 17. Ra3 {[%clk
00:01:27]} {[%emt 00:01:05]} Nc7 {[%clk 00:02:32]} {[%emt 00:00:05]} 18. Re1
{[%clk 00:01:18]} {[%emt 00:00:11]} f5 {[%clk 00:02:33]} {[%emt 00:00:01]} 19.
Bh2 {[%clk 00:01:13]} {[%emt 00:00:07]} Rfe8 {[%clk 00:02:24]} {[%emt
00:00:11]} 20. Bf1 {[%clk 00:00:50]} {[%emt 00:00:25]} Kh8 {[%clk 00:02:13]}
{[%emt 00:00:13]} 21. e4 {[%clk 00:00:45]} {[%emt 00:00:07]} Bxf1 {[%emt
00:00:43]} 22. Nxf1 {[%clk 00:00:29]} {[%emt 00:00:11]} Nb5 {[%clk 00:01:31]}
{[%emt 00:00:10]} 23. Rae3 {[%clk 00:00:22]} {[%emt 00:00:09]} Qf7 {[%clk
00:01:30]} {[%emt 00:00:03]} 24. exf5 {[%clk 00:00:19]} {[%emt 00:00:05]} gxf5
{[%clk 00:01:29]} {[%emt 00:00:03]} 25. Bf4 {[%clk 00:00:04]} {[%emt 00:00:17]}
Nd4 {[%clk 00:01:07]} {[%emt 00:00:24]} 26. b3 {[%clk 00:00:04]} {[%emt
00:00:03]} Rg8 {[%clk 00:00:59]} {[%emt 00:00:09]} 27. Nc4 {[%clk 00:00:04]}
{[%emt 00:00:01]} Qxd5 {[%clk 00:00:36]} {[%emt 00:00:26]} 28. Ng3 {[%clk
00:00:03]} {[%emt 00:00:04]} Rbe8 {[%clk 00:00:23]} {[%emt 00:00:15]} 29. Nxe5
{[%emt 00:00:03]} dxe5 {[%emt 00:00:02]} 30. Bg5 0-1

[Event "SM-blixten 2025"]
[Site "Uppsala, Sweden"]
[Date "2025.07.03"]
[Round "1.3"]
[White "Varjomaa, Stefan"]
[Black "Carlsson, Ludvig"]
[Result "0-1"]
[TimeControl "3 min + 2 sec increment starting from move 1"]
[BlackTitle "IM"]
[WhiteElo "1887"]
[BlackElo "2386"]

1. c4 {[%clk 00:03:02]} {[%emt 00:00:02]} e5 {[%clk 00:03:04]} {[%emt
00:00:02]} 2. Nc3 {[%clk 00:03:02]} {[%emt 00:00:01]} d6 {[%clk 00:03:04]}
{[%emt 00:00:02]} 3. e4 {[%clk 00:03:03]} {[%emt 00:00:01]} c5 {[%clk
00:03:00]} {[%emt 00:00:06]} 4. g3 {[%clk 00:03:03]} {[%emt 00:00:02]} h5
{[%clk 00:03:00]} {[%emt 00:00:02]} 5. h4 {[%clk 00:02:57]} {[%emt 00:00:08]}
Nc6 {[%clk 00:03:00]} {[%emt 00:00:02]} 6. Nge2 {[%clk 00:02:57]} {[%emt
00:00:01]} Bg4 {[%clk 00:02:41]} {[%emt 00:00:21]} 7. Bg2 {[%clk 00:02:57]}
{[%emt 00:00:02]} Nd4 {[%clk 00:02:42]} {[%emt 00:00:01]} 8. Qa4+ {[%clk
00:02:47]} {[%emt 00:00:13]} Bd7 {[%clk 00:02:40]} {[%emt 00:00:04]} 9. Qd1
{[%clk 00:02:46]} {[%emt 00:00:03]} Nf6 {[%clk 00:02:39]} {[%emt 00:00:03]} 10.
d3 {[%clk 00:02:46]} {[%emt 00:00:02]} Bg4 {[%clk 00:02:33]} {[%emt 00:00:08]}
11. Qa4+ {[%clk 00:02:40]} {[%emt 00:00:07]} Qd7 {[%clk 00:02:34]} {[%emt
00:00:02]} 12. Qxd7+ {[%clk 00:02:40]} {[%emt 00:00:02]} Kxd7 {[%clk 00:02:34]}
{[%emt 00:00:01]} 13. Nxd4 {[%clk 00:02:41]} {[%emt 00:00:02]} cxd4 {[%clk
00:02:34]} {[%emt 00:00:02]} 14. f3 {[%clk 00:02:33]} {[%emt 00:00:10]} dxc3
{[%clk 00:02:28]} {[%emt 00:00:09]} 15. fxg4 {[%clk 00:02:33]} {[%emt
00:00:01]} cxb2 {[%clk 00:02:28]} {[%emt 00:00:02]} 16. Bxb2 {[%clk 00:02:34]}
Nxg4 {[%clk 00:02:27]} {[%emt 00:00:03]} 17. O-O {[%clk 00:02:33]} {[%emt
00:00:03]} Ke6 {[%clk 00:02:22]} {[%emt 00:00:07]} 18. Bh3 {[%clk 00:02:33]}
{[%emt 00:00:02]} Be7 {[%clk 00:02:19]} {[%emt 00:00:06]} 19. Rf5 {[%clk
00:02:21]} {[%emt 00:00:14]} g6 {[%clk 00:02:15]} {[%emt 00:00:05]} 20. Rf3
{[%clk 00:02:21]} {[%emt 00:00:02]} f6 {[%clk 00:02:11]} {[%emt 00:00:06]} 21.
Rb1 {[%clk 00:02:19]} {[%emt 00:00:05]} Rab8 {[%clk 00:02:11]} {[%emt
00:00:02]} 22. Ba3 {[%clk 00:02:19]} {[%emt 00:00:02]} Rhc8 {[%clk 00:02:05]}
{[%emt 00:00:07]} 23. Bxg4+ {[%clk 00:02:12]} {[%emt 00:00:09]} hxg4 {[%clk
00:02:06]} {[%emt 00:00:02]} 24. Rf2 {[%clk 00:02:13]} Bd8 {[%clk 00:02:06]}
{[%emt 00:00:03]} 25. Rfb2 {[%clk 00:02:13]} {[%emt 00:00:01]} Bb6+ {[%clk
00:02:02]} {[%emt 00:00:07]} 26. Kg2 {[%clk 00:01:56]} {[%emt 00:00:19]} Rc7
{[%clk 00:02:01]} {[%emt 00:00:03]} 27. Rc2 {[%clk 00:01:39]} {[%emt 00:00:19]}
f5 {[%clk 00:02:00]} {[%emt 00:00:02]} 28. Rh1 {[%clk 00:01:10]} {[%emt
00:00:31]} Rh8 {[%clk 00:01:53]} {[%emt 00:00:09]} 29. Rhc1 {[%clk 00:01:03]}
{[%emt 00:00:09]} Bd4 {[%clk 00:01:51]} {[%emt 00:00:05]} 30. Bb4 {[%clk
00:00:56]} {[%emt 00:00:09]} f4 {[%clk 00:01:39]} {[%emt 00:00:13]} 31. Bd2
{[%clk 00:00:50]} {[%emt 00:00:08]} f3+ {[%clk 00:01:39]} {[%emt 00:00:02]} 32.
Kf1 {[%clk 00:00:51]} {[%emt 00:00:02]} Rch7 {[%clk 00:01:28]} {[%emt
00:00:12]} 33. Bg5 {[%clk 00:00:47]} {[%emt 00:00:06]} Rh5 {[%clk 00:01:29]} 34.
Bd2 {[%clk 00:00:48]} {[%emt 00:00:02]} Rxh4 {[%clk 00:01:27]} {[%emt
00:00:03]} 0-1